[Event "Titled Tuesday Blitz July 13 2021"]
[White "Orozbaev, Eldiar"]
[Black "Bernadskiy, Vitaliy"]
[WhiteFideId "13802240"]
[BlackFideId "14100371"]
[WhiteElo "1911"]
[BlackElo "2510"]
[Result "1/2-1/2"]
[Round "03"]
[TimeControl "180+1"]
[Date "2021.07.13"]
[WhiteClock "0:01:13"]
[BlackClock "0:01:35"]

1. e4 {[%clk 0:03:00]}  c5 {[%clk 0:02:59]} 2. c3 {[%clk 0:03:01]}  e6 {[%clk 0:02:56]} 3. d4 {[%clk 0:03:01]}  d5 {[%clk 0:02:57]} 4. e5 {[%clk 0:03:01]}  Bd7 {[%clk 0:02:56]} 5. Nf3 {[%clk 0:03:01]}  Qb6 {[%clk 0:02:55]} 6. Bd3 {[%clk 0:02:59]}  cxd4 {[%clk 0:02:54]} 7. cxd4 {[%clk 0:03:00]}  Bb5 {[%clk 0:02:55]} 8. O-O {[%clk 0:02:59]}  Bxd3 {[%clk 0:02:53]} 9. Qxd3 {[%clk 0:03:00]}  Nc6 {[%clk 0:02:53]} 10. Nc3 {[%clk 0:02:59]}  Nge7 {[%clk 0:02:46]} 11. Na4 {[%clk 0:02:54]}  Qd8 {[%clk 0:02:43]} 12. Be3 {[%clk 0:02:49]}  Nf5 {[%clk 0:02:43]} 13. a3 {[%clk 0:02:47]}  Be7 {[%clk 0:02:43]} 14. b4 {[%clk 0:02:45]}  O-O {[%clk 0:02:43]} 15. Rfc1 {[%clk 0:02:40]}  Rc8 {[%clk 0:02:40]} 16. Nc5 {[%clk 0:02:36]}  Bxc5 {[%clk 0:02:33]} 17. Rxc5 {[%clk 0:02:33]}  a6 {[%clk 0:02:31]} 18. Rac1 {[%clk 0:02:31]}  Qd7 {[%clk 0:02:31]} 19. g4 {[%clk 0:02:25]}  Nxe3 {[%clk 0:02:30]} 20. Qxe3 {[%clk 0:02:21]}  Na7 {[%clk 0:02:30]} 21. h4 {[%clk 0:02:17]}  Rc6 {[%clk 0:02:24]} 22. h5 {[%clk 0:02:16]}  Rfc8 {[%clk 0:02:25]} 23. h6 {[%clk 0:02:17]}  g6 {[%clk 0:02:19]} 24. Qf4 {[%clk 0:02:10]}  Qe7 {[%clk 0:02:16]} 25. Kg2 {[%clk 0:02:03]}  Nb5 {[%clk 0:02:01]} 26. a4 {[%clk 0:01:59]}  Na3 {[%clk 0:01:57]} 27. Nd2 {[%clk 0:01:54]}  Qh4 {[%clk 0:01:41]} 28. Rh1 {[%clk 0:01:48]}  Qe7 {[%clk 0:01:39]} 29. Rhc1 {[%clk 0:01:46]}  Qh4 {[%clk 0:01:38]} 30. Nf3 {[%clk 0:01:13]}  Qe7 {[%clk 0:01:35]} 31. Nd2 {[%clk 0:01:13]} 1/2-1/2


[Site "https://www.chess.com"]

[Event "Titled Tuesday Blitz July 13 2021"]
[White "Paravyan, David"]
[Black "Sadovsky, Artem"]
[WhiteFideId "4194985"]
[BlackFideId "4155840"]
[WhiteElo "2562"]
[BlackElo "2442"]
[Result "1-0"]
[Round "03"]
[TimeControl "180+1"]
[Date "2021.07.13"]
[WhiteClock "0:01:26"]
[BlackClock "0:00:02"]

1. d4 {[%clk 0:03:00]}  g6 {[%clk 0:02:59]} 2. e4 {[%clk 0:03:01]}  Bg7 {[%clk 0:03:00]} 3. g3 {[%clk 0:03:01]}  d5 {[%clk 0:02:57]} 4. e5 {[%clk 0:02:59]}  c5 {[%clk 0:02:57]} 5. c3 {[%clk 0:02:59]}  Nc6 {[%clk 0:02:57]} 6. Bg2 {[%clk 0:02:58]}  h5 {[%clk 0:02:56]} 7. Nf3 {[%clk 0:02:58]}  Nh6 {[%clk 0:02:51]} 8. O-O {[%clk 0:02:58]}  Bg4 {[%clk 0:02:46]} 9. Qb3 {[%clk 0:02:57]}  cxd4 {[%clk 0:02:33]} 10. Qxb7 {[%clk 0:02:53]}  Qc8 {[%clk 0:02:30]} 11. Qxc8+ {[%clk 0:02:51]}  Rxc8 {[%clk 0:02:31]} 12. Nxd4 {[%clk 0:02:45]}  Nxd4 {[%clk 0:02:22]} 13. cxd4 {[%clk 0:02:46]}  Nf5 {[%clk 0:02:23]} 14. Nc3 {[%clk 0:02:39]}  Nxd4 {[%clk 0:02:14]} 15. Bxd5 {[%clk 0:02:37]}  Bf3 {[%clk 0:01:49]} 16. Be3 {[%clk 0:02:36]}  Bxd5 {[%clk 0:01:42]} 17. Nxd5 {[%clk 0:02:27]}  Bxe5 {[%clk 0:01:27]} 18. Rfd1 {[%clk 0:02:27]}  Nc2 {[%clk 0:01:19]} 19. Rac1 {[%clk 0:02:20]}  Bxb2 {[%clk 0:01:17]} 20. Rb1 {[%clk 0:02:14]}  Nxe3 {[%clk 0:01:15]} 21. Nxe3 {[%clk 0:02:14]}  Ba3 {[%clk 0:01:09]} 22. Rb7 {[%clk 0:02:13]}  Bc5 {[%clk 0:01:08]} 23. Nd5 {[%clk 0:02:13]}  O-O {[%clk 0:00:54]} 24. Nxe7+ {[%clk 0:02:12]}  Bxe7 {[%clk 0:00:55]} 25. Rxe7 {[%clk 0:02:13]}  a5 {[%clk 0:00:54]} 26. Rd5 {[%clk 0:02:12]}  a4 {[%clk 0:00:52]} 27. Ra5 {[%clk 0:02:11]}  h4 {[%clk 0:00:32]} 28. Rxa4 {[%clk 0:01:58]}  h3 {[%clk 0:00:32]} 29. Re1 {[%clk 0:01:57]}  Rc2 {[%clk 0:00:31]} 30. Rh4 {[%clk 0:01:56]}  Rxa2 {[%clk 0:00:30]} 31. Rxh3 {[%clk 0:01:56]}  Rb8 {[%clk 0:00:27]} 32. Rh4 {[%clk 0:01:53]}  Rb7 {[%clk 0:00:27]} 33. Rf4 {[%clk 0:01:53]}  Kg7 {[%clk 0:00:28]} 34. Kg2 {[%clk 0:01:53]}  Rab2 {[%clk 0:00:28]} 35. h4 {[%clk 0:01:52]}  R2b4 {[%clk 0:00:29]} 36. Rf3 {[%clk 0:01:50]}  Rb3 {[%clk 0:00:29]} 37. Rf4 {[%clk 0:01:50]}  R3b4 {[%clk 0:00:29]} 38. Ree4 {[%clk 0:01:50]}  Rxe4 {[%clk 0:00:29]} 39. Rxe4 {[%clk 0:01:51]}  Rb2 {[%clk 0:00:30]} 40. Kf3 {[%clk 0:01:52]}  Ra2 {[%clk 0:00:30]} 41. Rf4 {[%clk 0:01:52]}  Rb2 {[%clk 0:00:30]} 42. Kg4 {[%clk 0:01:52]}  Ra2 {[%clk 0:00:31]} 43. f3 {[%clk 0:01:46]}  Rb2 {[%clk 0:00:31]} 44. Ra4 {[%clk 0:01:46]}  Rb3 {[%clk 0:00:30]} 45. Kf4 {[%clk 0:01:46]}  Rc3 {[%clk 0:00:30]} 46. g4 {[%clk 0:01:46]}  Rc5 {[%clk 0:00:29]} 47. Re4 {[%clk 0:01:46]}  Ra5 {[%clk 0:00:29]} 48. Rd4 {[%clk 0:01:46]}  Rb5 {[%clk 0:00:29]} 49. Re4 {[%clk 0:01:45]}  Ra5 {[%clk 0:00:30]} 50. Re5 {[%clk 0:01:42]}  Ra4+ {[%clk 0:00:30]} 51. Kg3 {[%clk 0:01:42]}  Ra1 {[%clk 0:00:30]} 52. Rb5 {[%clk 0:01:41]}  Ra4 {[%clk 0:00:28]} 53. Rb7 {[%clk 0:01:41]}  Rc4 {[%clk 0:00:27]} 54. Rd7 {[%clk 0:01:41]}  Rb4 {[%clk 0:00:27]} 55. Rd5 {[%clk 0:01:40]}  Ra4 {[%clk 0:00:27]} 56. Re5 {[%clk 0:01:40]}  Rb4 {[%clk 0:00:27]} 57. Kf2 {[%clk 0:01:41]}  Rb3 {[%clk 0:00:26]} 58. Rd5 {[%clk 0:01:41]}  Ra3 {[%clk 0:00:26]} 59. Rc5 {[%clk 0:01:41]}  Rb3 {[%clk 0:00:27]} 60. Ra5 {[%clk 0:01:41]}  Rc3 {[%clk 0:00:27]} 61. Rb5 {[%clk 0:01:42]}  Rd3 {[%clk 0:00:27]} 62. Kg3 {[%clk 0:01:42]}  Rc3 {[%clk 0:00:27]} 63. Kf4 {[%clk 0:01:41]}  Ra3 {[%clk 0:00:25]} 64. Rd5 {[%clk 0:01:41]}  Ra4+ {[%clk 0:00:24]} 65. Ke5 {[%clk 0:01:40]}  Ra3 {[%clk 0:00:25]} 66. Ke4 {[%clk 0:01:40]}  Ra4+ {[%clk 0:00:25]} 67. Rd4 {[%clk 0:01:41]}  Ra5 {[%clk 0:00:25]} 68. Kf4 {[%clk 0:01:41]}  Rb5 {[%clk 0:00:25]} 69. Re4 {[%clk 0:01:41]}  Rc5 {[%clk 0:00:25]} 70. Rb4 {[%clk 0:01:41]}  Rd5 {[%clk 0:00:26]} 71. Ke4 {[%clk 0:01:40]}  Ra5 {[%clk 0:00:26]} 72. Rc4 {[%clk 0:01:37]}  Rb5 {[%clk 0:00:25]} 73. Kd4 {[%clk 0:01:35]}  Rb3 {[%clk 0:00:24]} 74. Ke4 {[%clk 0:01:34]}  Rb5 {[%clk 0:00:24]} 75. Rd4 {[%clk 0:01:35]}  Rc5 {[%clk 0:00:25]} 76. Rd5 {[%clk 0:01:35]}  Rc4+ {[%clk 0:00:23]} 77. Ke5 {[%clk 0:01:35]}  Rc3 {[%clk 0:00:24]} 78. Kf4 {[%clk 0:01:32]}  Rc4+ {[%clk 0:00:24]} 79. Kg3 {[%clk 0:01:32]}  Rb4 {[%clk 0:00:25]} 80. h5 {[%clk 0:01:33]}  Ra4 {[%clk 0:00:19]} 81. Kh4 {[%clk 0:01:32]}  Ra1 {[%clk 0:00:19]} 82. Kg5 {[%clk 0:01:31]}  gxh5 {[%clk 0:00:19]} 83. gxh5 {[%clk 0:01:30]}  Rg1+ {[%clk 0:00:19]} 84. Kf5 {[%clk 0:01:30]}  Kh6 {[%clk 0:00:19]} 85. Kf6 {[%clk 0:01:30]}  Rg7 {[%clk 0:00:02]} 86. Rf5 {[%clk 0:01:26]} 1-0


[Site "https://www.chess.com"]

[Event "Titled Tuesday Blitz July 13 2021"]
[White "Pert, Richard G"]
[Black "Mikaelyan, Arman"]
[WhiteFideId "404748"]
[BlackFideId "13304852"]
[WhiteElo "2441"]
[BlackElo "2461"]
[Result "1/2-1/2"]
[Round "03"]
[TimeControl "180+1"]
[Date "2021.07.13"]
[WhiteClock "0:00:15"]
[BlackClock "0:00:04"]

1. d4 {[%clk 0:03:00]}  Nf6 {[%clk 0:02:58]} 2. Bg5 {[%clk 0:03:00]}  d5 {[%clk 0:02:57]} 3. e3 {[%clk 0:03:00]}  e6 {[%clk 0:02:57]} 4. Nf3 {[%clk 0:02:57]}  h6 {[%clk 0:02:55]} 5. Bh4 {[%clk 0:02:52]}  g5 {[%clk 0:02:52]} 6. Bg3 {[%clk 0:02:51]}  Ne4 {[%clk 0:02:52]} 7. Nfd2 {[%clk 0:02:46]}  Nxg3 {[%clk 0:02:50]} 8. hxg3 {[%clk 0:02:46]}  Bg7 {[%clk 0:02:50]} 9. c4 {[%clk 0:02:46]}  c5 {[%clk 0:02:42]} 10. Nc3 {[%clk 0:02:38]}  cxd4 {[%clk 0:02:41]} 11. exd4 {[%clk 0:02:38]}  Nc6 {[%clk 0:02:20]} 12. cxd5 {[%clk 0:02:36]}  exd5 {[%clk 0:02:15]} 13. Nb3 {[%clk 0:02:25]}  O-O {[%clk 0:02:06]} 14. Bd3 {[%clk 0:02:12]}  Re8+ {[%clk 0:02:02]} 15. Kf1 {[%clk 0:02:12]}  Be6 {[%clk 0:01:51]} 16. Rc1 {[%clk 0:02:10]}  Qf6 {[%clk 0:01:21]} 17. Bb1 {[%clk 0:02:04]}  Nxd4 {[%clk 0:00:55]} 18. Qd3 {[%clk 0:01:48]}  Nxb3 {[%clk 0:00:39]} 19. Qh7+ {[%clk 0:01:41]}  Kf8 {[%clk 0:00:38]} 20. axb3 {[%clk 0:01:42]}  Rac8 {[%clk 0:00:36]} 21. Re1 {[%clk 0:01:37]}  Bd7 {[%clk 0:00:32]} 22. Rd1 {[%clk 0:01:26]}  d4 {[%clk 0:00:26]} 23. Ne4 {[%clk 0:01:20]}  Qf5 {[%clk 0:00:13]} 24. Rxh6 {[%clk 0:00:56]}  Qxh7 {[%clk 0:00:13]} 25. Rxh7 {[%clk 0:00:57]}  Bf5 {[%clk 0:00:12]} 26. Rxg7 {[%clk 0:00:34]}  Kxg7 {[%clk 0:00:10]} 27. Nd6 {[%clk 0:00:34]}  Bxb1 {[%clk 0:00:09]} 28. Nxe8+ {[%clk 0:00:32]}  Rxe8 {[%clk 0:00:10]} 29. Rxb1 {[%clk 0:00:32]}  Kf6 {[%clk 0:00:07]} 30. Rd1 {[%clk 0:00:31]}  Rd8 {[%clk 0:00:08]} 31. Ke2 {[%clk 0:00:31]}  Rd6 {[%clk 0:00:06]} 32. Kd3 {[%clk 0:00:30]}  Rb6 {[%clk 0:00:04]} 33. Kc4 {[%clk 0:00:27]}  Rc6+ {[%clk 0:00:03]} 34. Kd3 {[%clk 0:00:26]}  Ke5 {[%clk 0:00:02]} 35. Re1+ {[%clk 0:00:23]}  Kd6 {[%clk 0:00:03]} 36. Re4 {[%clk 0:00:16]}  Rc1 {[%clk 0:00:03]} 37. Rxd4+ {[%clk 0:00:16]}  Ke6 {[%clk 0:00:04]} 38. Re4+ {[%clk 0:00:16]}  Kd6 {[%clk 0:00:04]} 39. Rd4+ {[%clk 0:00:16]}  Ke6 {[%clk 0:00:04]} 40. Re4+ {[%clk 0:00:16]}  Kd6 {[%clk 0:00:04]} 41. Rd4+ {[%clk 0:00:15]} 1/2-1/2


[Site "https://www.chess.com"]

[Event "Titled Tuesday Blitz July 13 2021"]
[White "Petukhov, Dmitry"]
[Black "Gupta, Abhijeet"]
[WhiteFideId "4142748"]
[BlackFideId "5010608"]
[WhiteElo "2356"]
[BlackElo "2549"]
[Result "1-0"]
[Round "03"]
[TimeControl "180+1"]
[Date "2021.07.13"]
[WhiteClock "0:00:12"]
[BlackClock "0:00:11"]

1. e4 {[%clk 0:02:40]}  e6 {[%clk 0:02:56]} 2. d4 {[%clk 0:02:39]}  d5 {[%clk 0:02:57]} 3. e5 {[%clk 0:02:36]}  c5 {[%clk 0:02:57]} 4. c3 {[%clk 0:02:35]}  Nc6 {[%clk 0:02:58]} 5. Nf3 {[%clk 0:02:35]}  Qb6 {[%clk 0:02:58]} 6. a3 {[%clk 0:02:33]}  Nge7 {[%clk 0:02:54]} 7. b4 {[%clk 0:02:30]}  cxd4 {[%clk 0:02:49]} 8. cxd4 {[%clk 0:02:31]}  Nf5 {[%clk 0:02:47]} 9. Be3 {[%clk 0:02:31]}  Bd7 {[%clk 0:02:44]} 10. Bd3 {[%clk 0:02:28]}  Be7 {[%clk 0:02:19]} 11. Nc3 {[%clk 0:02:25]}  Rc8 {[%clk 0:02:13]} 12. Bxf5 {[%clk 0:02:19]}  exf5 {[%clk 0:02:09]} 13. Nxd5 {[%clk 0:02:13]}  Qb5 {[%clk 0:02:09]} 14. Nxe7 {[%clk 0:02:03]}  Nxe7 {[%clk 0:02:10]} 15. Qe2 {[%clk 0:02:03]}  Nd5 {[%clk 0:02:05]} 16. Bd2 {[%clk 0:01:53]}  Qxe2+ {[%clk 0:02:02]} 17. Kxe2 {[%clk 0:01:51]}  Bb5+ {[%clk 0:02:03]} 18. Kd1 {[%clk 0:01:50]}  Kd7 {[%clk 0:02:01]} 19. Rc1 {[%clk 0:01:43]}  Bd3 {[%clk 0:01:55]} 20. Re1 {[%clk 0:01:28]}  Rxc1+ {[%clk 0:01:51]} 21. Kxc1 {[%clk 0:00:59]}  Rc8+ {[%clk 0:01:52]} 22. Kb2 {[%clk 0:00:59]}  Nb6 {[%clk 0:01:49]} 23. e6+ {[%clk 0:00:53]}  Kd6 {[%clk 0:01:30]} 24. Ne5 {[%clk 0:00:54]}  Rc2+ {[%clk 0:00:38]} 25. Kb3 {[%clk 0:00:45]}  fxe6 {[%clk 0:00:26]} 26. Bf4 {[%clk 0:00:44]}  Be4 {[%clk 0:00:22]} 27. f3 {[%clk 0:00:42]}  Nd5 {[%clk 0:00:20]} 28. fxe4 {[%clk 0:00:36]}  Rc3+ {[%clk 0:00:21]} 29. Kb2 {[%clk 0:00:36]}  fxe4 {[%clk 0:00:21]} 30. Rxe4 {[%clk 0:00:28]}  Ke7 {[%clk 0:00:20]} 31. Bg5+ {[%clk 0:00:26]}  Kd6 {[%clk 0:00:20]} 32. Nf7+ {[%clk 0:00:26]}  Kd7 {[%clk 0:00:20]} 33. Ne5+ {[%clk 0:00:21]}  Kd6 {[%clk 0:00:20]} 34. Nf3 {[%clk 0:00:21]}  Rd3 {[%clk 0:00:19]} 35. Bf4+ {[%clk 0:00:21]}  Ke7 {[%clk 0:00:19]} 36. Ng5 {[%clk 0:00:19]}  Nxf4 {[%clk 0:00:17]} 37. Rxf4 {[%clk 0:00:20]}  Rd2+ {[%clk 0:00:18]} 38. Kc3 {[%clk 0:00:20]}  Rxg2 {[%clk 0:00:19]} 39. Nf3 {[%clk 0:00:19]}  g5 {[%clk 0:00:19]} 40. Re4 {[%clk 0:00:17]}  Kf6 {[%clk 0:00:19]} 41. Ne5 {[%clk 0:00:17]}  h5 {[%clk 0:00:17]} 42. h4 {[%clk 0:00:16]}  g4 {[%clk 0:00:16]} 43. Kc4 {[%clk 0:00:15]}  Rc2+ {[%clk 0:00:16]} 44. Kb3 {[%clk 0:00:15]}  Rf2 {[%clk 0:00:14]} 45. Nd7+ {[%clk 0:00:16]}  Kf7 {[%clk 0:00:12]} 46. Nc5 {[%clk 0:00:17]}  g3 {[%clk 0:00:12]} 47. Re3 {[%clk 0:00:16]}  g2 {[%clk 0:00:12]} 48. Rg3 {[%clk 0:00:17]}  Ke7 {[%clk 0:00:10]} 49. Kc4 {[%clk 0:00:16]}  b6 {[%clk 0:00:10]} 50. Ne4 {[%clk 0:00:13]}  Re2 {[%clk 0:00:09]} 51. Nc3 {[%clk 0:00:12]}  a6 {[%clk 0:00:09]} 52. Nxe2 {[%clk 0:00:11]}  Kf6 {[%clk 0:00:08]} 53. Rxg2 {[%clk 0:00:12]}  Kf5 {[%clk 0:00:09]} 54. Rf2+ {[%clk 0:00:13]}  Ke4 {[%clk 0:00:10]} 55. Ng3+ {[%clk 0:00:12]}  Ke3 {[%clk 0:00:11]} 56. Rf6 {[%clk 0:00:12]} 1-0


[Site "https://www.chess.com"]

[Event "Titled Tuesday Blitz July 13 2021"]
[White "Popilski, Gil"]
[Black "Quparadze, Giga"]
[WhiteFideId "2809060"]
[BlackFideId "13602250"]
[WhiteElo "2537"]
[BlackElo "2658"]
[Result "1/2-1/2"]
[Round "03"]
[TimeControl "180+1"]
[Date "2021.07.13"]
[WhiteClock "0:00:08"]
[BlackClock "0:01:27"]

1. e4 {[%clk 0:03:00]}  c5 {[%clk 0:02:59]} 2. Nf3 {[%clk 0:02:51]}  e6 {[%clk 0:02:59]} 3. d4 {[%clk 0:02:41]}  cxd4 {[%clk 0:03:00]} 4. Nxd4 {[%clk 0:02:42]}  a6 {[%clk 0:03:00]} 5. Bd3 {[%clk 0:02:41]}  g6 {[%clk 0:02:59]} 6. O-O {[%clk 0:02:26]}  Bg7 {[%clk 0:02:59]} 7. Nf3 {[%clk 0:02:24]}  Nc6 {[%clk 0:02:58]} 8. c4 {[%clk 0:02:23]}  Nge7 {[%clk 0:02:58]} 9. Nc3 {[%clk 0:02:22]}  O-O {[%clk 0:02:58]} 10. Qe2 {[%clk 0:02:21]}  d5 {[%clk 0:02:57]} 11. cxd5 {[%clk 0:02:08]}  exd5 {[%clk 0:02:58]} 12. Bg5 {[%clk 0:02:08]}  d4 {[%clk 0:02:57]} 13. Nd5 {[%clk 0:01:56]}  h6 {[%clk 0:02:56]} 14. Bf6 {[%clk 0:01:51]}  Be6 {[%clk 0:02:52]} 15. Bxg7 {[%clk 0:01:36]}  Kxg7 {[%clk 0:02:53]} 16. Nf4 {[%clk 0:01:36]}  Bg4 {[%clk 0:02:52]} 17. h3 {[%clk 0:01:33]}  Bxf3 {[%clk 0:02:52]} 18. Qxf3 {[%clk 0:01:34]}  Ne5 {[%clk 0:02:53]} 19. Qg3 {[%clk 0:01:34]}  N7c6 {[%clk 0:02:53]} 20. Rad1 {[%clk 0:01:33]}  Qg5 {[%clk 0:02:52]} 21. Kh2 {[%clk 0:01:24]}  Rad8 {[%clk 0:02:50]} 22. Nd5 {[%clk 0:01:21]}  Qxg3+ {[%clk 0:02:47]} 23. Kxg3 {[%clk 0:01:20]}  f5 {[%clk 0:02:47]} 24. Bb1 {[%clk 0:01:11]}  d3 {[%clk 0:02:43]} 25. Nf4 {[%clk 0:01:08]}  fxe4 {[%clk 0:02:36]} 26. Ne6+ {[%clk 0:01:08]}  Kf6 {[%clk 0:02:37]} 27. Nxf8 {[%clk 0:01:06]}  Rxf8 {[%clk 0:02:32]} 28. Rfe1 {[%clk 0:01:01]}  Kf5 {[%clk 0:02:07]} 29. f3 {[%clk 0:00:59]}  exf3 {[%clk 0:02:07]} 30. Bxd3+ {[%clk 0:00:51]}  Kg5 {[%clk 0:02:05]} 31. h4+ {[%clk 0:00:49]}  Kh5 {[%clk 0:02:05]} 32. Be4 {[%clk 0:00:41]}  fxg2 {[%clk 0:02:05]} 33. Bxg2 {[%clk 0:00:40]}  g5 {[%clk 0:02:05]} 34. hxg5 {[%clk 0:00:38]}  Kxg5 {[%clk 0:02:04]} 35. Rd5 {[%clk 0:00:21]}  Rf5 {[%clk 0:02:00]} 36. Be4 {[%clk 0:00:18]}  Rf4 {[%clk 0:01:54]} 37. Rc5 {[%clk 0:00:14]}  Rg4+ {[%clk 0:01:51]} 38. Kf2 {[%clk 0:00:13]}  Kf6 {[%clk 0:01:47]} 39. Bxc6 {[%clk 0:00:08]}  Nxc6 {[%clk 0:01:41]} 40. Rh5 {[%clk 0:00:07]}  Rg6 {[%clk 0:01:41]} 41. Reh1 {[%clk 0:00:06]}  Kg7 {[%clk 0:01:40]} 42. Rg1 {[%clk 0:00:07]}  Nb4 {[%clk 0:01:39]} 43. Rxg6+ {[%clk 0:00:05]}  Kxg6 {[%clk 0:01:39]} 44. Rh4 {[%clk 0:00:04]}  Nxa2 {[%clk 0:01:36]} 45. Rc4 {[%clk 0:00:04]}  Kf6 {[%clk 0:01:32]} 46. Ke3 {[%clk 0:00:05]}  Ke6 {[%clk 0:01:32]} 47. Kd4 {[%clk 0:00:05]}  Kd6 {[%clk 0:01:30]} 48. b3 {[%clk 0:00:04]}  b5 {[%clk 0:01:29]} 49. Rc2 {[%clk 0:00:03]}  Nb4 {[%clk 0:01:29]} 50. Rh2 {[%clk 0:00:04]}  Nc6+ {[%clk 0:01:29]} 51. Kc3 {[%clk 0:00:04]}  a5 {[%clk 0:01:29]} 52. Rxh6+ {[%clk 0:00:04]}  Kc5 {[%clk 0:01:30]} 53. Rh5+ {[%clk 0:00:05]}  Kb6 {[%clk 0:01:29]} 54. Kb2 {[%clk 0:00:06]}  Nb4 {[%clk 0:01:29]} 55. Rh6+ {[%clk 0:00:06]}  Kc5 {[%clk 0:01:28]} 56. Rh5+ {[%clk 0:00:07]}  Nd5 {[%clk 0:01:29]} 57. Kc2 {[%clk 0:00:07]}  Kc6 {[%clk 0:01:28]} 58. Rh6+ {[%clk 0:00:07]}  Kc5 {[%clk 0:01:28]} 59. Rh5 {[%clk 0:00:08]}  Kd4 {[%clk 0:01:27]} 60. Rh4+ {[%clk 0:00:08]}  Kc5 {[%clk 0:01:27]} 61. Rh5 {[%clk 0:00:08]} 1/2-1/2


[Site "https://www.chess.com"]

[Event "Titled Tuesday Blitz July 13 2021"]
[White "Pruijssers, Roeland"]
[Black "Tronenkovs, Valdis"]
[WhiteFideId "1013068"]
[BlackFideId "11601558"]
[WhiteElo "2545"]
[BlackElo "2232"]
[Result "1-0"]
[Round "03"]
[TimeControl "180+1"]
[Date "2021.07.13"]
[WhiteClock "0:00:36"]
[BlackClock "0:00:06"]

1. e4 {[%clk 0:03:00]}  c5 {[%clk 0:02:58]} 2. Nf3 {[%clk 0:03:00]}  Nc6 {[%clk 0:02:58]} 3. Bb5 {[%clk 0:02:58]}  e6 {[%clk 0:02:58]} 4. O-O {[%clk 0:02:55]}  Nge7 {[%clk 0:02:58]} 5. Re1 {[%clk 0:02:55]}  a6 {[%clk 0:02:57]} 6. Bf1 {[%clk 0:02:55]}  d5 {[%clk 0:02:57]} 7. exd5 {[%clk 0:02:50]}  Nxd5 {[%clk 0:02:58]} 8. d3 {[%clk 0:02:45]}  Be7 {[%clk 0:02:39]} 9. Nbd2 {[%clk 0:02:40]}  b6 {[%clk 0:02:37]} 10. Ne4 {[%clk 0:02:24]}  Bb7 {[%clk 0:02:30]} 11. Nfg5 {[%clk 0:02:02]}  O-O {[%clk 0:01:33]} 12. Qh5 {[%clk 0:01:59]}  h6 {[%clk 0:01:29]} 13. Nf3 {[%clk 0:01:50]}  Ncb4 {[%clk 0:00:51]} 14. Re2 {[%clk 0:01:45]}  Nf6 {[%clk 0:00:47]} 15. Nxf6+ {[%clk 0:01:43]}  Bxf6 {[%clk 0:00:48]} 16. a3 {[%clk 0:01:35]}  Qd5 {[%clk 0:00:47]} 17. Qg4 {[%clk 0:01:29]}  Nc6 {[%clk 0:00:46]} 18. Bxh6 {[%clk 0:01:26]}  Bxb2 {[%clk 0:00:40]} 19. c4 {[%clk 0:01:19]}  Qf5 {[%clk 0:00:38]} 20. Qxf5 {[%clk 0:01:13]}  exf5 {[%clk 0:00:38]} 21. Rxb2 {[%clk 0:01:12]}  gxh6 {[%clk 0:00:37]} 22. Rxb6 {[%clk 0:01:11]}  Na5 {[%clk 0:00:31]} 23. Rxh6 {[%clk 0:01:05]}  Bxf3 {[%clk 0:00:29]} 24. gxf3 {[%clk 0:01:04]}  Kg7 {[%clk 0:00:28]} 25. Rb6 {[%clk 0:01:02]}  Rfe8 {[%clk 0:00:16]} 26. f4 {[%clk 0:00:56]}  Re6 {[%clk 0:00:16]} 27. Rab1 {[%clk 0:00:53]}  Kf6 {[%clk 0:00:16]} 28. Bg2 {[%clk 0:00:51]}  Rg8 {[%clk 0:00:16]} 29. Kf1 {[%clk 0:00:51]}  Rd8 {[%clk 0:00:15]} 30. Bd5 {[%clk 0:00:51]}  Red6 {[%clk 0:00:14]} 31. Ke2 {[%clk 0:00:48]}  Ke7 {[%clk 0:00:13]} 32. Kd2 {[%clk 0:00:47]}  Kd7 {[%clk 0:00:07]} 33. Rxd6+ {[%clk 0:00:46]}  Kxd6 {[%clk 0:00:07]} 34. Rb6+ {[%clk 0:00:40]}  Ke7 {[%clk 0:00:06]} 35. Kc3 {[%clk 0:00:36]}  Rxd5 {[%clk 0:00:06]} 36. cxd5 {[%clk 0:00:36]} 1-0


[Site "https://www.chess.com"]

[Event "Titled Tuesday Blitz July 13 2021"]
[White "Rodriguez, Santiago"]
[Black "Woodward, Andy"]
[WhiteFideId "3000591"]
[BlackFideId "30953499"]
[WhiteElo "2256"]
[BlackElo "2137"]
[Result "1/2-1/2"]
[Round "03"]
[TimeControl "180+1"]
[Date "2021.07.13"]
[WhiteClock "0:00:05"]
[BlackClock "0:00:18"]

1. d4 {[%clk 0:02:25]}  d5 {[%clk 0:02:59]} 2. Bf4 {[%clk 0:02:24]}  c5 {[%clk 0:02:58]} 3. e3 {[%clk 0:02:23]}  Nc6 {[%clk 0:02:58]} 4. c3 {[%clk 0:02:23]}  Nf6 {[%clk 0:02:58]} 5. Nd2 {[%clk 0:02:22]}  Bf5 {[%clk 0:02:59]} 6. Qb3 {[%clk 0:02:22]}  Na5 {[%clk 0:02:58]} 7. Bb5+ {[%clk 0:02:14]}  Bd7 {[%clk 0:02:56]} 8. Qa4 {[%clk 0:02:11]}  Nc6 {[%clk 0:02:49]} 9. dxc5 {[%clk 0:02:05]}  e5 {[%clk 0:02:47]} 10. Bg3 {[%clk 0:02:05]}  Bxc5 {[%clk 0:02:46]} 11. Ngf3 {[%clk 0:02:04]}  e4 {[%clk 0:02:45]} 12. Nd4 {[%clk 0:02:03]}  Bxd4 {[%clk 0:02:25]} 13. cxd4 {[%clk 0:02:00]}  O-O {[%clk 0:02:21]} 14. O-O {[%clk 0:01:58]}  a6 {[%clk 0:02:21]} 15. Bxc6 {[%clk 0:01:57]}  Bxc6 {[%clk 0:02:22]} 16. Qa3 {[%clk 0:01:58]}  Bb5 {[%clk 0:02:18]} 17. Rfc1 {[%clk 0:01:57]}  Rc8 {[%clk 0:02:18]} 18. Nb3 {[%clk 0:01:56]}  b6 {[%clk 0:02:15]} 19. Rxc8 {[%clk 0:01:52]}  Qxc8 {[%clk 0:02:14]} 20. Rc1 {[%clk 0:01:53]}  Qg4 {[%clk 0:02:10]} 21. Qb4 {[%clk 0:01:37]}  Rc8 {[%clk 0:01:58]} 22. Rxc8+ {[%clk 0:01:35]}  Qxc8 {[%clk 0:01:59]} 23. h3 {[%clk 0:01:16]}  Nh5 {[%clk 0:01:54]} 24. a4 {[%clk 0:01:15]}  Nxg3 {[%clk 0:01:26]} 25. axb5 {[%clk 0:01:02]}  Ne2+ {[%clk 0:01:25]} 26. Kf1 {[%clk 0:00:53]}  Nc1 {[%clk 0:01:23]} 27. Qc3 {[%clk 0:00:27]}  Qe8 {[%clk 0:01:18]} 28. Nxc1 {[%clk 0:00:20]}  Qxb5+ {[%clk 0:01:18]} 29. Kg1 {[%clk 0:00:20]}  g6 {[%clk 0:01:16]} 30. Nb3 {[%clk 0:00:18]}  Kg7 {[%clk 0:01:15]} 31. Nd2 {[%clk 0:00:18]}  Qe2 {[%clk 0:01:14]} 32. Nf1 {[%clk 0:00:17]}  a5 {[%clk 0:01:14]} 33. Qb3 {[%clk 0:00:17]}  b5 {[%clk 0:01:09]} 34. Qa3 {[%clk 0:00:17]}  a4 {[%clk 0:01:02]} 35. Qb4 {[%clk 0:00:17]}  Qc4 {[%clk 0:00:59]} 36. Qxc4 {[%clk 0:00:15]}  dxc4 {[%clk 0:00:59]} 37. Nd2 {[%clk 0:00:10]}  Kf8 {[%clk 0:00:54]} 38. Kf1 {[%clk 0:00:10]}  Ke7 {[%clk 0:00:50]} 39. Ke1 {[%clk 0:00:10]}  f5 {[%clk 0:00:49]} 40. Kd1 {[%clk 0:00:10]}  Kd6 {[%clk 0:00:50]} 41. Kc2 {[%clk 0:00:11]}  Kd5 {[%clk 0:00:37]} 42. Kc3 {[%clk 0:00:11]}  f4 {[%clk 0:00:36]} 43. Kb4 {[%clk 0:00:09]}  g5 {[%clk 0:00:29]} 44. Kxb5 {[%clk 0:00:09]}  a3 {[%clk 0:00:28]} 45. bxa3 {[%clk 0:00:08]}  c3 {[%clk 0:00:22]} 46. Nb3 {[%clk 0:00:08]}  h5 {[%clk 0:00:21]} 47. a4 {[%clk 0:00:09]}  g4 {[%clk 0:00:21]} 48. hxg4 {[%clk 0:00:08]}  hxg4 {[%clk 0:00:21]} 49. exf4 {[%clk 0:00:04]}  g3 {[%clk 0:00:20]} 50. fxg3 {[%clk 0:00:04]}  e3 {[%clk 0:00:20]} 51. Nc1 {[%clk 0:00:03]}  Kxd4 {[%clk 0:00:19]} 52. a5 {[%clk 0:00:04]}  c2 {[%clk 0:00:19]} 53. a6 {[%clk 0:00:04]}  e2 {[%clk 0:00:17]} 54. Nxe2+ {[%clk 0:00:03]}  Ke3 {[%clk 0:00:17]} 55. Nc1 {[%clk 0:00:04]}  Kd2 {[%clk 0:00:17]} 56. a7 {[%clk 0:00:05]}  Kxc1 {[%clk 0:00:17]} 57. a8=Q {[%clk 0:00:05]}  Kb2 {[%clk 0:00:18]} 58. Qc6 {[%clk 0:00:05]}  Ka1 {[%clk 0:00:18]} 59. Qxc2 {[%clk 0:00:05]} 1/2-1/2


[Site "https://www.chess.com"]